[Event "*** Titled Tuesday Blitz"]
[Site "Chess.com"]
[Date "2018.07.03"]
[Round "3"]
[White "Ravan_02"]
[Black "Martins-BR"]
[Result "1-0"]
[WhiteElo "2477"]
[BlackElo "2333"]
[TimeControl "180+2"]
[EndTime "13:37:35 PDT"]
[Termination "Ravan_02 won by resignation"]

1. d4 {[%clk 0:02:55.2]} 1... f5 {[%clk 0:03:00]} 2. Nf3 {[%clk 0:02:54.3]} 2...
Nf6 {[%clk 0:03:00.5]} 3. Bg5 {[%clk 0:02:54.9]} 3... Ne4 {[%clk 0:03:00.1]} 4.
Bf4 {[%clk 0:02:55.8]} 4... c5 {[%clk 0:03:00.1]} 5. c3 {[%clk 0:02:51.8]} 5...
Qb6 {[%clk 0:02:58.7]} 6. Qb3 {[%clk 0:02:51.4]} 6... c4 {[%clk 0:02:45.5]} 7.
Qc2 {[%clk 0:02:48.5]} 7... Nc6 {[%clk 0:02:34.6]} 8. Nbd2 {[%clk 0:02:40]} 8...
d5 {[%clk 0:02:34.2]} 9. Nxe4 {[%clk 0:02:33.7]} 9... fxe4 {[%clk 0:02:31.7]}
10. Ne5 {[%clk 0:02:34.7]} 10... Nxe5 {[%clk 0:02:10.8]} 11. Bxe5 {[%clk
0:02:33.9]} 11... Bf5 {[%clk 0:02:08.5]} 12. e3 {[%clk 0:02:30]} 12... Qc6
{[%clk 0:02:05]} 13. b3 {[%clk 0:02:27.2]} 13... cxb3 {[%clk 0:01:57.6]} 14.
Qxb3 {[%clk 0:02:26]} 14... a6 {[%clk 0:01:55.9]} 15. Be2 {[%clk 0:02:21.6]}
15... Rc8 {[%clk 0:01:53.6]} 16. O-O {[%clk 0:02:21.2]} 16... b5 {[%clk
0:01:41.1]} 17. a4 {[%clk 0:02:16.2]} 17... Bd7 {[%clk 0:01:34.8]} 18. axb5
{[%clk 0:02:10.9]} 18... axb5 {[%clk 0:01:35.8]} 19. Rfb1 {[%clk 0:01:55.1]}
19... h5 {[%clk 0:00:43.1]} 20. Bxb5 {[%clk 0:01:50.7]} 20... Qxb5 {[%clk
0:00:43.3]} 21. Qxb5 {[%clk 0:01:52.6]} 21... Bxb5 {[%clk 0:00:44.3]} 22. Rxb5
{[%clk 0:01:53.7]} 22... e6 {[%clk 0:00:44.8]} 23. Rb7 {[%clk 0:01:39.8]} 23...
Rh6 {[%clk 0:00:34.3]} 24. g3 {[%clk 0:01:25.6]} 24... g5 {[%clk 0:00:29.8]} 25.
Raa7 {[%clk 0:01:16.1]} 25... h4 {[%clk 0:00:27.8]} 26. Bg7 {[%clk 0:00:51.3]}
26... Rg6 {[%clk 0:00:27.6]} 27. Be5 {[%clk 0:00:25.6]} 27... h3 {[%clk
0:00:24.8]} 28. g4 {[%clk 0:00:19.8]} 28... Rh6 {[%clk 0:00:20.2]} 29. Kf1
{[%clk 0:00:20.3]} 29... Rh4 {[%clk 0:00:20.5]} 30. f4 {[%clk 0:00:19.9]} 30...
exf3 {[%clk 0:00:20.7]} 31. Kf2 {[%clk 0:00:20.9]} 31... Rxg4 {[%clk 0:00:21.3]}
32. Kxf3 {[%clk 0:00:21.9]} 32... Rg1 {[%clk 0:00:22.1]} 33. Rh7 {[%clk
0:00:19.1]} 33... g4+ {[%clk 0:00:22.8]} 34. Kf2 {[%clk 0:00:19.2]} 34... Rg2+
{[%clk 0:00:21.7]} 35. Ke1 {[%clk 0:00:13.2]} 35... Rd8 {[%clk 0:00:21.9]} 36.
Bf6 {[%clk 0:00:12.5]} 36... Rc8 {[%clk 0:00:22.5]} 37. Be5 {[%clk 0:00:12.8]}
37... Rd8 {[%clk 0:00:23.3]} 38. Rh8 {[%clk 0:00:13.3]} 38... Rg1+ {[%clk
0:00:18]} 39. Kf2 {[%clk 0:00:13.7]} 39... Rg2+ {[%clk 0:00:18.9]} 40. Kf1
{[%clk 0:00:15]} 40... Rc2 {[%clk 0:00:16.7]} 41. Bg7 {[%clk 0:00:14.8]} 41...
Rd7 {[%clk 0:00:17.4]} 42. Rxf8+ {[%clk 0:00:14.5]} 42... Ke7 {[%clk 0:00:18.4]}
43. Rxd7+ {[%clk 0:00:12.7]} 43... Kxd7 {[%clk 0:00:19.4]} 44. Be5 {[%clk
0:00:14.2]} 44... Rxc3 {[%clk 0:00:19.2]} 45. Kf2 {[%clk 0:00:14.5]} 45... Rc2+
{[%clk 0:00:20]} 46. Kg3 {[%clk 0:00:15.4]} 46... Rg2+ {[%clk 0:00:20.9]} 47.
Kh4 {[%clk 0:00:16.8]} 47... Ke7 {[%clk 0:00:21.6]} 48. Rg8 {[%clk 0:00:16.4]}
48... Kf7 {[%clk 0:00:21]} 49. Rxg4 {[%clk 0:00:16.6]} 49... Re2 {[%clk
0:00:21.3]} 50. Bf4 {[%clk 0:00:15.4]} 50... e5 {[%clk 0:00:20.8]} 51. dxe5
{[%clk 0:00:15.3]} 51... Ke6 {[%clk 0:00:22]} 52. Kxh3 {[%clk 0:00:15.4]} 52...
Kf5 {[%clk 0:00:22.2]} 53. Rg5+ {[%clk 0:00:16.2]} 53... Ke4 {[%clk 0:00:22.1]}
54. e6 {[%clk 0:00:16.6]} 54... d4 {[%clk 0:00:23.4]} 55. e7 {[%clk 0:00:17.6]}
1-0

[Event "*** Titled Tuesday Blitz"]
[Site "Chess.com"]
[Date "2018.07.03"]
[Round "3"]
[White "The_Unbeatable_One"]
[Black "Paralinch"]
[Result "0-1"]
[WhiteElo "2645"]
[BlackElo "2794"]
[TimeControl "180+2"]
[EndTime "13:37:36 PDT"]
[Termination "Paralinch won by resignation"]

1. e4 {[%clk 0:03:00.3]} 1... c6 {[%clk 0:03:00.8]} 2. d4 {[%clk 0:03:00.3]}
2... d5 {[%clk 0:03:02.7]} 3. Nd2 {[%clk 0:03:00.5]} 3... dxe4 {[%clk
0:03:03.8]} 4. Nxe4 {[%clk 0:03:01.5]} 4... Bf5 {[%clk 0:03:05.3]} 5. Ng3 {[%clk
0:03:02.3]} 5... Bg6 {[%clk 0:03:06.5]} 6. h4 {[%clk 0:03:03.8]} 6... h6 {[%clk
0:03:07.4]} 7. Nf3 {[%clk 0:03:04.5]} 7... Nd7 {[%clk 0:03:08.6]} 8. h5 {[%clk
0:03:05.3]} 8... Bh7 {[%clk 0:03:10.2]} 9. Bd3 {[%clk 0:03:06.8]} 9... Bxd3
{[%clk 0:03:11.7]} 10. Qxd3 {[%clk 0:03:08.7]} 10... e6 {[%clk 0:03:13.1]} 11.
Bd2 {[%clk 0:03:09.3]} 11... Ngf6 {[%clk 0:03:14.3]} 12. O-O-O {[%clk
0:03:09.7]} 12... Be7 {[%clk 0:03:15.7]} 13. Kb1 {[%clk 0:03:10.4]} 13... O-O
{[%clk 0:03:16.4]} 14. Ne4 {[%clk 0:03:11.3]} 14... Nxe4 {[%clk 0:03:17.6]} 15.
Qxe4 {[%clk 0:03:12.5]} 15... Nf6 {[%clk 0:03:19.5]} 16. Qe2 {[%clk 0:03:13.9]}
16... Qd5 {[%clk 0:03:21.1]} 17. Be3 {[%clk 0:03:15.4]} 17... Ng4 {[%clk
0:03:07.2]} 18. Bc1 {[%clk 0:03:13.3]} 18... Rfd8 {[%clk 0:03:07.6]} 19. Ne5
{[%clk 0:03:07.3]} 19... Nxe5 {[%clk 0:03:08.5]} 20. dxe5 {[%clk 0:03:08.3]}
20... Qb5 {[%clk 0:03:09.5]} 21. c4 {[%clk 0:03:04.6]} 21... Qb6 {[%clk
0:03:01]} 22. g4 {[%clk 0:03:03.6]} 22... Rxd1 {[%clk 0:03:00.8]} 23. Rxd1
{[%clk 0:03:03.8]} 23... Rd8 {[%clk 0:03:02.3]} 24. Rxd8+ {[%clk 0:03:04.2]}
24... Qxd8 {[%clk 0:03:03.3]} 25. Qd2 {[%clk 0:02:55.8]} 25... Qc7 {[%clk
0:02:57.7]} 26. f4 {[%clk 0:02:56.3]} 26... f6 {[%clk 0:02:59.1]} 27. Qd4 {[%clk
0:02:47.4]} 27... fxe5 {[%clk 0:02:55.7]} 28. fxe5 {[%clk 0:02:47.4]} 28... b5
{[%clk 0:02:45.1]} 29. cxb5 {[%clk 0:02:44]} 29... cxb5 {[%clk 0:02:46.2]} 30.
Qe4 {[%clk 0:02:45.1]} 30... Qd7 {[%clk 0:02:15.3]} 31. Qg6 {[%clk 0:02:36.2]}
31... Kf8 {[%clk 0:02:07.7]} 32. Qe4 {[%clk 0:01:26.1]} 32... Qd1 {[%clk
0:01:55.1]} 33. Qa8+ {[%clk 0:01:25.2]} 33... Kf7 {[%clk 0:01:55.4]} 34. Qxa7
{[%clk 0:01:26.2]} 34... Qxg4 {[%clk 0:01:55.5]} 35. Qf2+ {[%clk 0:01:23.5]}
35... Kg8 {[%clk 0:01:45.1]} 36. Qc2 {[%clk 0:00:36.4]} 36... Qxh5 {[%clk
0:01:38.7]} 37. b3 {[%clk 0:00:21]} 37... Qxe5 {[%clk 0:01:33.1]} 38. a4 {[%clk
0:00:21.8]} 38... bxa4 {[%clk 0:01:15.2]} 39. bxa4 {[%clk 0:00:22.7]} 39... h5
{[%clk 0:01:12.9]} 40. Bb2 {[%clk 0:00:19]} 40... Qf5 {[%clk 0:01:08.6]} 41. Bd4
{[%clk 0:00:12.7]} 41... h4 {[%clk 0:00:53.4]} 42. Qxf5 {[%clk 0:00:12.4]} 42...
exf5 {[%clk 0:00:53.9]} 43. a5 {[%clk 0:00:13.9]} 43... h3 {[%clk 0:00:54.7]}
44. Bg1 {[%clk 0:00:10.3]} 44... Bc5 {[%clk 0:00:51.4]} 45. Bh2 {[%clk
0:00:11.3]} 45... Kf7 {[%clk 0:00:47.9]} 46. Kc2 {[%clk 0:00:12.5]} 46... Ke6
{[%clk 0:00:48.5]} 47. Kd3 {[%clk 0:00:13.6]} 47... Kd5 {[%clk 0:00:43.6]} 48.
a6 {[%clk 0:00:14.4]} 48... Kc6 {[%clk 0:00:37.1]} 49. Ke2 {[%clk 0:00:12.5]}
49... g5 {[%clk 0:00:34.4]} 50. Kf3 {[%clk 0:00:10.8]} 50... g4+ {[%clk
0:00:34.5]} 51. Kf4 {[%clk 0:00:08.6]} 51... Bd6+ {[%clk 0:00:25.5]} 52. Kxf5
{[%clk 0:00:09.5]} 52... g3 {[%clk 0:00:27.1]} 53. a7 {[%clk 0:00:06.3]} 53...
Kb7 {[%clk 0:00:26.9]} 54. Bxg3 {[%clk 0:00:05.6]} 54... Bxg3 {[%clk 0:00:27.7]}
55. Kg4 {[%clk 0:00:05.8]} 55... h2 {[%clk 0:00:29]} 0-1

[Event "*** Titled Tuesday Blitz"]
[Site "Chess.com"]
[Date "2018.07.03"]
[Round "3"]
[White "Grebeniuk-S"]
[Black "Polish_fighter3000"]
[Result "1/2-1/2"]
[WhiteElo "2465"]
[BlackElo "2751"]
[TimeControl "180+2"]
[EndTime "13:38:04 PDT"]
[Termination "Game drawn - insufficient material"]

1. d4 {[%clk 0:03:01.9]} 1... Nf6 {[%clk 0:03:00.3]} 2. Nf3 {[%clk 0:03:03.1]}
2... e6 {[%clk 0:03:01.6]} 3. e3 {[%clk 0:03:04.1]} 3... b6 {[%clk 0:03:02]} 4.
Bd3 {[%clk 0:03:05.1]} 4... Bb7 {[%clk 0:03:03.3]} 5. Nbd2 {[%clk 0:03:06.6]}
5... d5 {[%clk 0:03:03.7]} 6. O-O {[%clk 0:03:04.9]} 6... Nbd7 {[%clk 0:03:05]}
7. Ne5 {[%clk 0:03:04]} 7... Nxe5 {[%clk 0:03:02.3]} 8. dxe5 {[%clk 0:03:04.9]}
8... Nd7 {[%clk 0:03:04.1]} 9. f4 {[%clk 0:02:57.3]} 9... a6 {[%clk 0:02:34.5]}
10. b3 {[%clk 0:02:41.5]} 10... Be7 {[%clk 0:02:34.7]} 11. Bb2 {[%clk
0:02:42.3]} 11... g6 {[%clk 0:02:33.7]} 12. f5 {[%clk 0:01:57.6]} 12... gxf5
{[%clk 0:02:26.9]} 13. Bxf5 {[%clk 0:01:58.8]} 13... exf5 {[%clk 0:02:13.5]} 14.
e6 {[%clk 0:02:00.7]} 14... Nf6 {[%clk 0:02:14.2]} 15. exf7+ {[%clk 0:01:52.3]}
15... Kxf7 {[%clk 0:02:16.1]} 16. Rxf5 {[%clk 0:01:51.9]} 16... Rg8 {[%clk
0:02:17.2]} 17. Qh5+ {[%clk 0:01:50.8]} 17... Ke6 {[%clk 0:02:17.7]} 18. Re5+
{[%clk 0:01:33.7]} 18... Kd6 {[%clk 0:01:32.9]} 19. Qf7 {[%clk 0:01:27.3]} 19...
Rxg2+ {[%clk 0:01:33.4]} 20. Kxg2 {[%clk 0:01:18.6]} 20... d4+ {[%clk
0:01:34.5]} 21. Kf1 {[%clk 0:01:07.1]} 21... Kxe5 {[%clk 0:01:28.7]} 22. Bxd4+
{[%clk 0:00:53.1]} 22... Kf5 {[%clk 0:01:29.8]} 23. Ke2 {[%clk 0:00:48.8]} 23...
Bg2 {[%clk 0:01:00.9]} 24. Rg1 {[%clk 0:00:47.5]} 24... Qe8 {[%clk 0:01:01.4]}
25. Qg7 {[%clk 0:00:32.8]} 25... Qh5+ {[%clk 0:00:49.3]} 26. Kd3 {[%clk
0:00:34.2]} 26... Qg6 {[%clk 0:00:21.3]} 27. Qxe7 {[%clk 0:00:21.4]} 27... Rg8
{[%clk 0:00:21.7]} 28. Qe5+ {[%clk 0:00:13.5]} 28... Kg4+ {[%clk 0:00:21.2]} 29.
Ke2 {[%clk 0:00:13.6]} 29... Kh3 {[%clk 0:00:20.7]} 30. Qxf6 {[%clk 0:00:13.1]}
30... Qg4+ {[%clk 0:00:20]} 31. Kd3 {[%clk 0:00:13]} 31... c5 {[%clk 0:00:20.5]}
32. Qh6+ {[%clk 0:00:13.2]} 32... Qh4 {[%clk 0:00:21.6]} 33. Qxh4+ {[%clk
0:00:14.4]} 33... Kxh4 {[%clk 0:00:23.5]} 34. Nf3+ {[%clk 0:00:09.8]} 34... Kh3
{[%clk 0:00:25.4]} 35. Ne5 {[%clk 0:00:09.4]} 35... cxd4 {[%clk 0:00:25.9]} 36.
Kxd4 {[%clk 0:00:10.1]} 36... Rd8+ {[%clk 0:00:23.6]} 37. Kc3 {[%clk 0:00:10]}
37... Kxh2 {[%clk 0:00:25]} 38. Re1 {[%clk 0:00:10.7]} 38... h5 {[%clk
0:00:25.7]} 39. Ng6 {[%clk 0:00:07.7]} 39... Be4 {[%clk 0:00:25.2]} 40. Nf4
{[%clk 0:00:06.5]} 40... h4 {[%clk 0:00:26.2]} 41. Re2+ {[%clk 0:00:05.8]} 41...
Kg3 {[%clk 0:00:26.8]} 42. Rd2 {[%clk 0:00:07.1]} 42... Rc8+ {[%clk 0:00:26.2]}
43. Kd4 {[%clk 0:00:08.3]} 43... Rxc2 {[%clk 0:00:26.8]} 44. Rd1 {[%clk
0:00:04.7]} 44... Bf3 {[%clk 0:00:23.4]} 45. Rg1+ {[%clk 0:00:05.4]} 45... Rg2
{[%clk 0:00:24.4]} 46. Nxg2 {[%clk 0:00:05.5]} 46... Bxg2 {[%clk 0:00:26.3]} 47.
e4 {[%clk 0:00:06.7]} 47... h3 {[%clk 0:00:27.3]} 48. e5 {[%clk 0:00:06.7]}
48... h2 {[%clk 0:00:28.6]} 49. Rc1 {[%clk 0:00:07.7]} 49... Kf4 {[%clk
0:00:25.9]} 50. e6 {[%clk 0:00:08.2]} 50... h1=Q {[%clk 0:00:26.9]} 51. Rxh1
{[%clk 0:00:07.5]} 51... Bxh1 {[%clk 0:00:28.8]} 52. e7 {[%clk 0:00:07.1]} 52...
Bc6 {[%clk 0:00:30.2]} 53. a4 {[%clk 0:00:08.4]} 53... Kf5 {[%clk 0:00:20.3]}
54. a5 {[%clk 0:00:08.8]} 54... Ke6 {[%clk 0:00:21.4]} 55. axb6 {[%clk
0:00:06.8]} 55... Kxe7 {[%clk 0:00:22.5]} 56. Kc5 {[%clk 0:00:08]} 56... Kd7
{[%clk 0:00:23.1]} 57. b7 {[%clk 0:00:09.3]} 57... Bxb7 {[%clk 0:00:23.1]} 58.
Kb6 {[%clk 0:00:11.2]} 58... Bd5 {[%clk 0:00:13.1]} 59. Kxa6 {[%clk 0:00:11.7]}
59... Bxb3 {[%clk 0:00:14.6]} 1/2-1/2

[Event "*** Titled Tuesday Blitz"]
[Site "Chess.com"]
[Date "2018.07.03"]
[Round "3"]
[White "ChrisTool2"]
[Black "Aklanion"]
[Result "1-0"]
[WhiteElo "2261"]
[BlackElo "2067"]
[TimeControl "180+2"]
[EndTime "13:38:08 PDT"]
[Termination "ChrisTool2 won by resignation"]

1. Nf3 {[%clk 0:03:01.9]} 1... Nf6 {[%clk 0:01:49.7]} 2. c4 {[%clk 0:02:59.3]}
2... g6 {[%clk 0:01:44.6]} 3. g3 {[%clk 0:02:58.8]} 3... Bg7 {[%clk 0:01:45.3]}
4. Bg2 {[%clk 0:03:00.2]} 4... O-O {[%clk 0:01:46.4]} 5. O-O {[%clk 0:03:01.7]}
5... d6 {[%clk 0:01:47.6]} 6. d3 {[%clk 0:03:02.8]} 6... Nc6 {[%clk 0:01:44.7]}
7. Nc3 {[%clk 0:03:04.2]} 7... a5 {[%clk 0:01:41.8]} 8. a3 {[%clk 0:03:05.4]}
8... Bd7 {[%clk 0:01:38.4]} 9. Rb1 {[%clk 0:03:06.7]} 9... Qc8 {[%clk
0:01:37.5]} 10. b4 {[%clk 0:03:03.1]} 10... axb4 {[%clk 0:01:39.4]} 11. axb4
{[%clk 0:03:04.7]} 11... Bh3 {[%clk 0:01:40.8]} 12. b5 {[%clk 0:03:03.4]} 12...
Bxg2 {[%clk 0:01:33.9]} 13. Kxg2 {[%clk 0:02:57.7]} 13... Ne5 {[%clk 0:01:29.3]}
14. Nxe5 {[%clk 0:02:51]} 14... dxe5 {[%clk 0:01:31.2]} 15. Bg5 {[%clk 0:02:47]}
15... e6 {[%clk 0:01:10.9]} 16. Qc1 {[%clk 0:02:38.2]} 16... Re8 {[%clk
0:01:04.3]} 17. h3 {[%clk 0:02:32.7]} 17... Qd7 {[%clk 0:01:04.4]} 18. Qe3
{[%clk 0:02:31.8]} 18... Nh5 {[%clk 0:00:59.5]} 19. Bh6 {[%clk 0:02:22.8]} 19...
Bh8 {[%clk 0:00:46.4]} 20. Ne4 {[%clk 0:02:20.8]} 20... b6 {[%clk 0:00:45.3]}
21. g4 {[%clk 0:02:10]} 21... Nf6 {[%clk 0:00:35.8]} 22. Ra1 {[%clk 0:02:10.6]}
22... Nxe4 {[%clk 0:00:35.2]} 23. Qxe4 {[%clk 0:02:11.8]} 23... Rad8 {[%clk
0:00:32.4]} 24. Ra7 {[%clk 0:02:00.5]} 24... f5 {[%clk 0:00:28.8]} 25. Qb7
{[%clk 0:01:51.5]} 25... Rc8 {[%clk 0:00:23]} 26. Qxb6 {[%clk 0:01:46.3]} 26...
fxg4 {[%clk 0:00:21.6]} 27. hxg4 {[%clk 0:01:46.1]} 27... e4 {[%clk 0:00:23]}
28. Qc6 {[%clk 0:01:20.7]} 28... Qxc6 {[%clk 0:00:17.6]} 29. bxc6 {[%clk
0:01:22.6]} 29... exd3 {[%clk 0:00:17.8]} 30. exd3 {[%clk 0:01:24.5]} 30... Bd4
{[%clk 0:00:17.4]} 31. Rb7 {[%clk 0:01:24.3]} 31... e5 {[%clk 0:00:17.8]} 32.
Kf3 {[%clk 0:01:12]} 32... Re6 {[%clk 0:00:17.8]} 33. Ke4 {[%clk 0:01:07.8]}
33... Rxc6 {[%clk 0:00:18.8]} 34. f4 {[%clk 0:01:09.2]} 34... Rf6 {[%clk
0:00:18.1]} 35. fxe5 {[%clk 0:01:05.4]} 35... Rxf1 {[%clk 0:00:18.1]} 36. Kxd4
{[%clk 0:01:06.6]} 36... Kf7 {[%clk 0:00:18.9]} 37. Bg5 {[%clk 0:00:58.8]} 37...
Rg1 {[%clk 0:00:18.6]} 38. Kd5 {[%clk 0:00:57.5]} 38... Rxg4 {[%clk 0:00:19.2]}
39. e6+ {[%clk 0:00:55.9]} 39... Ke8 {[%clk 0:00:19.6]} 40. Bf6 {[%clk
0:00:54.8]} 40... h5 {[%clk 0:00:15.8]} 41. d4 {[%clk 0:00:47.8]} 41... h4
{[%clk 0:00:16.5]} 42. Kc6 {[%clk 0:00:44.2]} 42... Rf4 {[%clk 0:00:14.9]} 43.
Be5 {[%clk 0:00:41]} 43... Rf5 {[%clk 0:00:14.5]} 44. c5 {[%clk 0:00:34.1]}
44... Rxe5 {[%clk 0:00:12.8]} 45. dxe5 {[%clk 0:00:34.7]} 45... h3 {[%clk
0:00:14.2]} 46. Rb3 {[%clk 0:00:35.1]} 46... Ke7 {[%clk 0:00:15.5]} 47. Rxh3
{[%clk 0:00:35.7]} 47... Kxe6 {[%clk 0:00:16.5]} 48. Rg3 {[%clk 0:00:22.2]}
48... Kxe5 {[%clk 0:00:11.1]} 49. Rxg6 {[%clk 0:00:22.9]} 49... Kd4 {[%clk
0:00:11.8]} 50. Kb7 {[%clk 0:00:21.4]} 50... Rf8 {[%clk 0:00:06.9]} 51. c6
{[%clk 0:00:22]} 51... Rf7 {[%clk 0:00:08.1]} 52. Rg8 {[%clk 0:00:21.3]} 52...
Kc5 {[%clk 0:00:07.8]} 53. Rc8 {[%clk 0:00:21.4]} 53... Kd6 {[%clk 0:00:08.4]}
54. Rd8+ {[%clk 0:00:21.7]} 54... Kc5 {[%clk 0:00:09.4]} 55. Rd7 {[%clk
0:00:22.2]} 55... Rf1 {[%clk 0:00:08.5]} 56. Kxc7 {[%clk 0:00:22.3]} 56... Rc1
{[%clk 0:00:08.6]} 57. Rh7 {[%clk 0:00:22.7]} 57... Kd5 {[%clk 0:00:09.5]} 58.
Rh6 {[%clk 0:00:23.1]} 58... Rc2 {[%clk 0:00:09.4]} 59. Kd7 {[%clk 0:00:23.5]}
59... Ke5 {[%clk 0:00:08.2]} 60. c7 {[%clk 0:00:24.1]} 60... Rd2+ {[%clk
0:00:09.5]} 61. Ke8 {[%clk 0:00:21.6]} 61... Rc2 {[%clk 0:00:10.1]} 62. Kd8
{[%clk 0:00:23]} 62... Rd2+ {[%clk 0:00:10.7]} 63. Kc8 {[%clk 0:00:23.5]} 63...
Rc2 {[%clk 0:00:12]} 64. Kb7 {[%clk 0:00:23]} 64... Rb2+ {[%clk 0:00:13.3]} 65.
Rb6 {[%clk 0:00:23.6]} 65... Rc2 {[%clk 0:00:14.2]} 66. c8=Q {[%clk 0:00:24.2]}
66... Rxc8 {[%clk 0:00:16.1]} 67. Kxc8 {[%clk 0:00:25.1]} 1-0

[Event "*** Titled Tuesday Blitz"]
[Site "Chess.com"]
[Date "2018.07.03"]
[Round "3"]
[White "andrzej"]
[Black "CarlssonLudvig"]
[Result "1-0"]
[WhiteElo "2211"]
[BlackElo "2134"]
[TimeControl "180+2"]
[EndTime "13:38:18 PDT"]
[Termination "andrzej won by resignation"]

1. e4 {[%clk 0:03:01.9]} 1... e5 {[%clk 0:02:59.1]} 2. Nf3 {[%clk 0:03:02]} 2...
Nc6 {[%clk 0:03:00.6]} 3. d4 {[%clk 0:03:02.4]} 3... exd4 {[%clk 0:03:01.5]} 4.
Nxd4 {[%clk 0:03:04.3]} 4... Bc5 {[%clk 0:03:02.9]} 5. Nxc6 {[%clk 0:03:04.5]}
5... Qf6 {[%clk 0:03:03.8]} 6. Qf3 {[%clk 0:03:05.9]} 6... dxc6 {[%clk
0:03:03.6]} 7. Nc3 {[%clk 0:03:02.4]} 7... Be6 {[%clk 0:03:03.5]} 8. Be3 {[%clk
0:02:48.7]} 8... Bb4 {[%clk 0:02:57.2]} 9. Bd2 {[%clk 0:02:47.3]} 9... O-O-O
{[%clk 0:02:54.6]} 10. O-O-O {[%clk 0:02:46.1]} 10... Qxf3 {[%clk 0:02:48.8]}
11. gxf3 {[%clk 0:02:45.7]} 11... Ne7 {[%clk 0:02:49.2]} 12. a3 {[%clk
0:02:36.9]} 12... Ba5 {[%clk 0:02:46.8]} 13. Bd3 {[%clk 0:02:30.6]} 13... f6
{[%clk 0:02:45.9]} 14. Rhg1 {[%clk 0:02:27.4]} 14... Rhg8 {[%clk 0:02:36.7]} 15.
Na4 {[%clk 0:02:18.4]} 15... Bxd2+ {[%clk 0:02:35.7]} 16. Rxd2 {[%clk
0:02:20.3]} 16... b6 {[%clk 0:02:30.3]} 17. Rxg7 {[%clk 0:01:48]} 17... Rxg7
{[%clk 0:01:59.4]} 18. Ba6+ {[%clk 0:01:47.3]} 18... Kb8 {[%clk 0:02:00]} 19.
Rxd8+ {[%clk 0:01:47.8]} 19... Bc8 {[%clk 0:02:01.2]} 20. Re8 {[%clk 0:01:25.5]}
20... c5 {[%clk 0:01:54.1]} 21. Nc3 {[%clk 0:01:16.4]} 21... c6 {[%clk
0:01:54.8]} 22. Kd2 {[%clk 0:00:55.3]} 22... Kc7 {[%clk 0:01:55.3]} 23. Bxc8
{[%clk 0:00:55.7]} 23... Nxc8 {[%clk 0:01:57.2]} 24. Rf8 {[%clk 0:00:41.9]}
24... Rg2 {[%clk 0:01:48.8]} 25. Ke2 {[%clk 0:00:39.6]} 25... Rxh2 {[%clk
0:01:45.5]} 26. Rxf6 {[%clk 0:00:39]} 26... Nd6 {[%clk 0:01:43.6]} 27. e5 {[%clk
0:00:36.6]} 27... Nc4 {[%clk 0:01:44.4]} 28. Rf7+ {[%clk 0:00:36.4]} 28... Kd8
{[%clk 0:01:45.1]} 29. e6 {[%clk 0:00:37]} 29... Nxb2 {[%clk 0:01:42.5]} 30. Ne4
{[%clk 0:00:27.3]} 30... Nc4 {[%clk 0:01:28.6]} 31. Rd7+ {[%clk 0:00:20.7]}
31... Kc8 {[%clk 0:01:26.5]} 32. Rxa7 {[%clk 0:00:18.1]} 32... Rh6 {[%clk
0:01:26.4]} 33. e7 {[%clk 0:00:17]} 33... Re6 {[%clk 0:01:25.9]} 34. Kd3 {[%clk
0:00:17.2]} 34... Ne5+ {[%clk 0:01:25.6]} 35. Ke3 {[%clk 0:00:18]} 35... Nc4+
{[%clk 0:01:21.2]} 36. Kf4 {[%clk 0:00:18.7]} 36... Kb8 {[%clk 0:01:07.8]} 37.
Rd7 {[%clk 0:00:18.5]} 37... Ne5 {[%clk 0:00:58]} 38. Rd8+ {[%clk 0:00:17.7]}
38... Kc7 {[%clk 0:00:59.2]} 39. e8=Q {[%clk 0:00:17.9]} 39... Ng6+ {[%clk
0:00:59.5]} 40. Ke3 {[%clk 0:00:16.2]} 40... Rxe8 {[%clk 0:00:59.8]} 41. Rxe8
{[%clk 0:00:17.9]} 41... h5 {[%clk 0:01:00.2]} 42. Re6 {[%clk 0:00:16.9]} 42...
Nf8 {[%clk 0:01:00.3]} 43. Rh6 {[%clk 0:00:17]} 43... h4 {[%clk 0:01:00.9]} 44.
Rxh4 {[%clk 0:00:17.8]} 44... Ng6 {[%clk 0:01:02.3]} 45. Rh6 {[%clk 0:00:16.6]}
45... Ne5 {[%clk 0:01:02.8]} 46. Rh7+ {[%clk 0:00:16.2]} 46... Kb8 {[%clk
0:01:02.1]} 47. f4 {[%clk 0:00:16.7]} 47... Nc4+ {[%clk 0:01:02.9]} 48. Kd3
{[%clk 0:00:15.7]} 48... Nxa3 {[%clk 0:01:04.8]} 49. f5 {[%clk 0:00:16.8]} 49...
c4+ {[%clk 0:01:06.2]} 50. Kc3 {[%clk 0:00:17]} 50... Kc8 {[%clk 0:01:01.3]} 51.
f6 {[%clk 0:00:17.7]} 51... Kd8 {[%clk 0:01:02.6]} 52. Nd6 {[%clk 0:00:18.2]}
52... b5 {[%clk 0:00:32.7]} 53. Rh8+ {[%clk 0:00:13.2]} 53... Kd7 {[%clk
0:00:33.2]} 54. f7 {[%clk 0:00:14.4]} 54... b4+ {[%clk 0:00:34.4]} 55. Kxb4
{[%clk 0:00:15.2]} 55... Nxc2+ {[%clk 0:00:35.5]} 56. Kc3 {[%clk 0:00:16.3]}
56... Na3 {[%clk 0:00:34.5]} 57. f8=Q {[%clk 0:00:16.2]} 57... c5 {[%clk
0:00:32.7]} 58. Rh7+ {[%clk 0:00:15.3]} 58... Kc6 {[%clk 0:00:32.1]} 59. Qc8+
{[%clk 0:00:12]} 59... Kxd6 {[%clk 0:00:32.6]} 60. Rd7+ {[%clk 0:00:13]} 60...
Ke6 {[%clk 0:00:30.3]} 61. Qe8+ {[%clk 0:00:13.9]} 61... Kf5 {[%clk 0:00:30.3]}
62. Rf7+ {[%clk 0:00:15.4]} 62... Kg4 {[%clk 0:00:31.4]} 63. Qg8+ {[%clk
0:00:16.2]} 1-0